[Event "*** SCC Grand Prix: Titled Tuesday Blitz"]
[Site "Chess.com"]
[Date "2020.08.04"]
[Round "7"]
[White "afgano29"]
[Black "Lucas_Tomiello"]
[Result "1-0"]
[WhiteElo "2645"]
[BlackElo "2459"]
[TimeControl "180+1"]
[EndTime "15:02:56 PDT"]
[Termination "afgano29 won by resignation"]

1. d4 {[%clk 0:03:00.9]} 1... Nf6 {[%clk 0:02:59.8]} 2. c4 {[%clk 0:03:00.9]}
2... g6 {[%clk 0:03:00.4]} 3. Nc3 {[%clk 0:03:00.4]} 3... d5 {[%clk 0:03:00.9]}
4. Nf3 {[%clk 0:02:59.7]} 4... Bg7 {[%clk 0:03:00]} 5. cxd5 {[%clk 0:02:59.1]}
5... Nxd5 {[%clk 0:02:59.3]} 6. Bg5 {[%clk 0:02:59.5]} 6... Nxc3 {[%clk
0:02:52.9]} 7. bxc3 {[%clk 0:02:59.2]} 7... O-O {[%clk 0:02:49.2]} 8. e3 {[%clk
0:02:57.6]} 8... h6 {[%clk 0:02:46.2]} 9. Bh4 {[%clk 0:02:57]} 9... c5 {[%clk
0:02:42.3]} 10. Be2 {[%clk 0:02:54.7]} 10... Nc6 {[%clk 0:02:39]} 11. O-O {[%clk
0:02:53.8]} 11... cxd4 {[%clk 0:02:33.6]} 12. cxd4 {[%clk 0:02:52.3]} 12... b6
{[%clk 0:02:30.2]} 13. Nd2 {[%clk 0:02:41.2]} 13... Bb7 {[%clk 0:02:19.6]} 14.
Bf3 {[%clk 0:02:36.1]} 14... Na5 {[%clk 0:02:18.1]} 15. Bxb7 {[%clk 0:02:32.6]}
15... Nxb7 {[%clk 0:02:19]} 16. Qa4 {[%clk 0:02:25.3]} 16... Nd6 {[%clk
0:02:15.2]} 17. Bg3 {[%clk 0:02:20.3]} 17... Nf5 {[%clk 0:02:11.9]} 18. Rac1
{[%clk 0:02:16.3]} 18... Nxg3 {[%clk 0:02:09]} 19. hxg3 {[%clk 0:02:17.2]} 19...
e5 {[%clk 0:02:09.3]} 20. Nf3 {[%clk 0:02:09.5]} 20... exd4 {[%clk 0:02:07.5]}
21. Rfd1 {[%clk 0:02:09.5]} 21... Qe8 {[%clk 0:02:02.5]} 22. Qxe8 {[%clk
0:02:04.8]} 22... Rfxe8 {[%clk 0:02:03.4]} 23. Nxd4 {[%clk 0:02:05.7]} 23...
Rec8 {[%clk 0:01:58]} 24. Nc6 {[%clk 0:02:04.2]} 24... Rc7 {[%clk 0:01:51.4]}
25. Rc2 {[%clk 0:01:31]} 25... Kh7 {[%clk 0:01:47.1]} 26. Kf1 {[%clk 0:01:27.7]}
26... Rac8 {[%clk 0:01:43.6]} 27. Rdc1 {[%clk 0:01:27.1]} 27... Bb2 {[%clk
0:01:39.2]} 28. Rxb2 {[%clk 0:01:24]} 28... Rxc6 {[%clk 0:01:39.1]} 29. Rxc6
{[%clk 0:01:23.6]} 29... Rxc6 {[%clk 0:01:40]} 30. Ke2 {[%clk 0:01:24.2]} 30...
Kg7 {[%clk 0:01:39.5]} 31. Rd2 {[%clk 0:01:23.3]} 31... Kf6 {[%clk 0:01:36.5]}
32. f4 {[%clk 0:01:17.8]} 32... Ke6 {[%clk 0:01:34.4]} 33. e4 {[%clk 0:01:15.4]}
33... a5 {[%clk 0:01:25.1]} 34. e5 {[%clk 0:01:11.8]} 34... Kf5 {[%clk
0:01:18.7]} 35. Kf2 {[%clk 0:01:06.9]} 35... Ke4 {[%clk 0:01:15.1]} 36. Kg1
{[%clk 0:00:58.2]} 36... b5 {[%clk 0:01:00.7]} 37. Rd7 {[%clk 0:00:53.5]} 37...
f6 {[%clk 0:00:47.7]} 38. exf6 {[%clk 0:00:34.8]} 38... Rxf6 {[%clk 0:00:48.6]}
39. Rb7 {[%clk 0:00:35.1]} 39... Rf5 {[%clk 0:00:47]} 40. Rb6 {[%clk 0:00:30]}
40... Rc5 {[%clk 0:00:47.1]} 41. Rxg6 {[%clk 0:00:27.5]} 41... Rc2 {[%clk
0:00:47.2]} 42. a3 {[%clk 0:00:22.2]} 42... Kd4 {[%clk 0:00:41.5]} 43. Rxh6
{[%clk 0:00:21.4]} 43... Ra2 {[%clk 0:00:41.8]} 44. f5 {[%clk 0:00:19.7]} 44...
Rxa3 {[%clk 0:00:20.2]} 45. f6 {[%clk 0:00:19.4]} 45... Ra1+ {[%clk 0:00:20.4]}
46. Kf2 {[%clk 0:00:19.7]} 46... Ra2+ {[%clk 0:00:20.6]} 47. Kf3 {[%clk
0:00:19.9]} 47... Ra1 {[%clk 0:00:19.7]} 48. Rh4+ {[%clk 0:00:17.3]} 48... Ke5
{[%clk 0:00:19.9]} 49. Rh5+ {[%clk 0:00:15.6]} 49... Kxf6 {[%clk 0:00:19.9]} 50.
Rxb5 {[%clk 0:00:16.5]} 50... a4 {[%clk 0:00:20.7]} 51. Kg4 {[%clk 0:00:16.6]}
51... a3 {[%clk 0:00:21.6]} 52. Ra5 {[%clk 0:00:16.7]} 52... Kg6 {[%clk
0:00:20.8]} 53. Ra6+ {[%clk 0:00:16.8]} 53... Kg7 {[%clk 0:00:21.7]} 54. Kg5
{[%clk 0:00:16.8]} 54... Rg1 {[%clk 0:00:17.5]} 55. Rxa3 {[%clk 0:00:15.3]}
55... Rxg2 {[%clk 0:00:17.1]} 56. g4 {[%clk 0:00:14.2]} 56... Rd2 {[%clk
0:00:16.4]} 57. Ra7+ {[%clk 0:00:14.3]} 57... Kf8 {[%clk 0:00:16.6]} 58. Kh6
{[%clk 0:00:10.9]} 58... Rh2+ {[%clk 0:00:11.3]} 59. Kg6 {[%clk 0:00:10.3]}
59... Rc2 {[%clk 0:00:11.4]} 60. g5 {[%clk 0:00:10.2]} 60... Rc8 {[%clk
0:00:03.3]} 61. Kh7 {[%clk 0:00:09.4]} 61... Rc1 {[%clk 0:00:03.2]} 62. Ra8+
{[%clk 0:00:06.9]} 62... Ke7 {[%clk 0:00:02.7]} 63. g6 {[%clk 0:00:06.9]} 63...
Rh1+ {[%clk 0:00:03.2]} 64. Kg7 {[%clk 0:00:07.3]} 64... Ke6 {[%clk 0:00:03.3]}
65. Ra6+ {[%clk 0:00:07.2]} 65... Ke7 {[%clk 0:00:03.1]} 66. Ra2 {[%clk
0:00:06.8]} 66... Rh5 {[%clk 0:00:02.8]} 67. Re2+ {[%clk 0:00:06.8]} 67... Kd8
{[%clk 0:00:02.8]} 68. Kf7 {[%clk 0:00:06.8]} 68... Rf5+ {[%clk 0:00:01.9]} 69.
Kg8 {[%clk 0:00:07.1]} 69... Rg5 {[%clk 0:00:02.5]} 70. g7 {[%clk 0:00:07.5]}
70... Kd7 {[%clk 0:00:03.4]} 71. Re4 {[%clk 0:00:07.3]} 71... Rh5 {[%clk
0:00:04.3]} 72. Kf7 {[%clk 0:00:07.5]} 72... Rf5+ {[%clk 0:00:04.8]} 73. Kg6
{[%clk 0:00:07.8]} 73... Rf1 {[%clk 0:00:05.5]} 74. g8=Q {[%clk 0:00:07.8]} 1-0

[Event "*** SCC Grand Prix: Titled Tuesday Blitz"]
[Site "Chess.com"]
[Date "2020.08.04"]
[Round "7"]
[White "penguingm1"]
[Black "Andreikka"]
[Result "1-0"]
[WhiteElo "2958"]
[BlackElo "2848"]
[TimeControl "180+1"]
[EndTime "15:03:02 PDT"]
[Termination "penguingm1 won on time"]

1. d4 {[%clk 0:03:00.9]} 1... Nf6 {[%clk 0:02:59.6]} 2. c4 {[%clk 0:03:01.3]}
2... e6 {[%clk 0:02:59.4]} 3. Nc3 {[%clk 0:03:01.3]} 3... Bb4 {[%clk 0:02:59.1]}
4. Qc2 {[%clk 0:03:01.6]} 4... O-O {[%clk 0:02:56.8]} 5. Nf3 {[%clk 0:03:01.6]}
5... c5 {[%clk 0:02:51.9]} 6. dxc5 {[%clk 0:03:02.5]} 6... Na6 {[%clk
0:02:50.5]} 7. g3 {[%clk 0:03:02.7]} 7... Nxc5 {[%clk 0:02:49.8]} 8. Bg2 {[%clk
0:03:01.5]} 8... Nce4 {[%clk 0:02:50]} 9. O-O {[%clk 0:03:01.7]} 9... Nxc3
{[%clk 0:02:50.3]} 10. bxc3 {[%clk 0:03:02.3]} 10... Be7 {[%clk 0:02:50.9]} 11.
e4 {[%clk 0:03:02.8]} 11... d6 {[%clk 0:02:51.4]} 12. e5 {[%clk 0:03:03.3]}
12... dxe5 {[%clk 0:02:52]} 13. Nxe5 {[%clk 0:03:04.2]} 13... Qc7 {[%clk
0:02:46.7]} 14. Qe2 {[%clk 0:03:03.9]} 14... Nd7 {[%clk 0:02:26.7]} 15. Bf4
{[%clk 0:02:57]} 15... Nxe5 {[%clk 0:02:25.8]} 16. Bxe5 {[%clk 0:02:56.7]} 16...
Bd6 {[%clk 0:02:26.2]} 17. Rfe1 {[%clk 0:02:57.3]} 17... Rb8 {[%clk 0:02:15.1]}
18. Rad1 {[%clk 0:01:42.7]} 18... Bxe5 {[%clk 0:02:11.3]} 19. Qxe5 {[%clk
0:01:43.6]} 19... Qxe5 {[%clk 0:02:11.3]} 20. Rxe5 {[%clk 0:01:44]} 20... b6
{[%clk 0:02:09.6]} 21. c5 {[%clk 0:01:44.1]} 21... Ba6 {[%clk 0:02:07]} 22. c6
{[%clk 0:01:40.9]} 22... Rfd8 {[%clk 0:02:00.8]} 23. Ree1 {[%clk 0:01:39]} 23...
Rbc8 {[%clk 0:01:30.3]} 24. c7 {[%clk 0:01:35.5]} 24... Rf8 {[%clk 0:01:16.5]}
25. Rd7 {[%clk 0:01:35.5]} 25... Bb5 {[%clk 0:01:16.7]} 26. Red1 {[%clk
0:01:36]} 26... Bxd7 {[%clk 0:01:07.4]} 27. Rxd7 {[%clk 0:01:36.9]} 27... g5
{[%clk 0:01:07.4]} 28. g4 {[%clk 0:01:25]} 28... Kg7 {[%clk 0:01:06.6]} 29. Bb7
{[%clk 0:01:23.8]} 29... Rce8 {[%clk 0:01:03.1]} 30. Kg2 {[%clk 0:01:22.9]}
30... Kf6 {[%clk 0:01:02.3]} 31. Kg3 {[%clk 0:01:21.7]} 31... Ke5 {[%clk
0:00:59.2]} 32. f3 {[%clk 0:01:02.3]} 32... h6 {[%clk 0:00:58.5]} 33. h3 {[%clk
0:00:27.5]} 33... f5 {[%clk 0:00:58.1]} 34. Rh7 {[%clk 0:00:26.5]} 34... Kd6
{[%clk 0:00:56.3]} 35. gxf5 {[%clk 0:00:19]} 35... exf5 {[%clk 0:00:55.7]} 36.
h4 {[%clk 0:00:08.7]} 36... g4 {[%clk 0:00:37.8]} 37. fxg4 {[%clk 0:00:06.1]}
37... fxg4 {[%clk 0:00:15.5]} 38. c8=Q {[%clk 0:00:06.2]} 38... Rxc8 {[%clk
0:00:14.9]} 39. Bxc8 {[%clk 0:00:07.1]} 39... Rxc8 {[%clk 0:00:15.3]} 40. Kxg4
{[%clk 0:00:03.9]} 40... Rxc3 {[%clk 0:00:15.5]} 41. Rxa7 {[%clk 0:00:03.5]}
41... Ke6 {[%clk 0:00:11.8]} 42. Rh7 {[%clk 0:00:02.6]} 42... Ra3 {[%clk
0:00:09.5]} 43. Rxh6+ {[%clk 0:00:02.9]} 43... Kf7 {[%clk 0:00:09.9]} 44. Rxb6
{[%clk 0:00:03]} 44... Rxa2 {[%clk 0:00:10.4]} 45. Kg5 {[%clk 0:00:03.6]} 45...
Kg7 {[%clk 0:00:10.6]} 46. Rb7+ {[%clk 0:00:03.8]} 46... Kg8 {[%clk 0:00:11.1]}
47. Rb6 {[%clk 0:00:04.3]} 47... Rg2+ {[%clk 0:00:10]} 48. Kh6 {[%clk
0:00:04.6]} 48... Rh2 {[%clk 0:00:08.8]} 49. h5 {[%clk 0:00:05]} 49... Kf7
{[%clk 0:00:08.6]} 50. Rg6 {[%clk 0:00:04.8]} 50... Rh1 {[%clk 0:00:07.7]} 51.
Rg5 {[%clk 0:00:05.2]} 51... Rh2 {[%clk 0:00:06.8]} 52. Kh7 {[%clk 0:00:05.2]}
52... Rh1 {[%clk 0:00:06.4]} 53. h6 {[%clk 0:00:05.7]} 53... Rh2 {[%clk
0:00:05.9]} 54. Rg7+ {[%clk 0:00:05.5]} 54... Kf8 {[%clk 0:00:05.5]} 55. Rg6
{[%clk 0:00:05.3]} 55... Kf7 {[%clk 0:00:05.3]} 56. Ra6 {[%clk 0:00:05.3]} 56...
Rh1 {[%clk 0:00:05]} 57. Ra7+ {[%clk 0:00:05.5]} 57... Kf8 {[%clk 0:00:04.4]}
58. Ra5 {[%clk 0:00:06.2]} 58... Kf7 {[%clk 0:00:04]} 59. Rf5+ {[%clk
0:00:06.7]} 59... Ke7 {[%clk 0:00:03.2]} 60. Kg7 {[%clk 0:00:04.6]} 60... Rg1+
{[%clk 0:00:03.4]} 61. Kh8 {[%clk 0:00:05.3]} 61... Rg6 {[%clk 0:00:02.9]} 62.
Kh7 {[%clk 0:00:05.1]} 62... Rg1 {[%clk 0:00:02.6]} 63. Rf2 {[%clk 0:00:05.8]}
63... Rg3 {[%clk 0:00:02.6]} 64. Kh8 {[%clk 0:00:06.2]} 64... Rg1 {[%clk
0:00:02.6]} 65. h7 {[%clk 0:00:04.4]} 65... Rg4 {[%clk 0:00:02.5]} 66. Rf3
{[%clk 0:00:04.4]} 66... Rg2 {[%clk 0:00:02.5]} 67. Ra3 {[%clk 0:00:04.8]} 67...
Kf7 {[%clk 0:00:02.9]} 68. Ra7+ {[%clk 0:00:05.4]} 68... Kf8 {[%clk 0:00:03.2]}
69. Ra8+ {[%clk 0:00:06]} 69... Kf7 {[%clk 0:00:03.5]} 70. Rg8 {[%clk
0:00:06.9]} 70... Rh2 {[%clk 0:00:03.7]} 71. Rg3 {[%clk 0:00:07.6]} 71... Rh1
{[%clk 0:00:02.4]} 72. Rf3+ {[%clk 0:00:08.1]} 72... Ke7 {[%clk 0:00:02.9]} 73.
Rf4 {[%clk 0:00:08.6]} 73... Rg1 {[%clk 0:00:02.8]} 74. Re4+ {[%clk 0:00:09.1]}
74... Kf7 {[%clk 0:00:03]} 75. Ra4 {[%clk 0:00:09.8]} 75... Kf8 {[%clk
0:00:02.9]} 76. Ra8+ {[%clk 0:00:10.3]} 76... Kf7 {[%clk 0:00:03.5]} 77. Rg8
{[%clk 0:00:11.2]} 77... Rh1 {[%clk 0:00:03.9]} 78. Rg4 {[%clk 0:00:11.5]} 78...
Kf8 {[%clk 0:00:02.9]} 79. Rf4+ {[%clk 0:00:11.8]} 79... Ke7 {[%clk 0:00:03.4]}
80. Kg7 {[%clk 0:00:12.4]} 80... Rg1+ {[%clk 0:00:03.7]} 81. Kh6 {[%clk
0:00:12.8]} 81... Rh1+ {[%clk 0:00:04.1]} 82. Kg6 {[%clk 0:00:13.4]} 82... Rg1+
{[%clk 0:00:04.3]} 83. Kh5 {[%clk 0:00:14]} 83... Rh1+ {[%clk 0:00:03.5]} 84.
Rh4 {[%clk 0:00:14.4]} 1-0

[Event "*** SCC Grand Prix: Titled Tuesday Blitz"]
[Site "Chess.com"]
[Date "2020.08.04"]
[Round "7"]
[White "Anton_Demchenko"]
[Black "Zubrrr"]
[Result "1/2-1/2"]
[WhiteElo "2826"]
[BlackElo "2646"]
[TimeControl "180+1"]
[EndTime "15:03:07 PDT"]
[Termination "Game drawn by repetition"]

1. e4 {[%clk 0:03:00.9]} 1... c5 {[%clk 0:02:59.4]} 2. Nf3 {[%clk 0:03:01.2]}
2... d6 {[%clk 0:02:59.8]} 3. Nc3 {[%clk 0:03:01.5]} 3... Nf6 {[%clk 0:02:59.7]}
4. g3 {[%clk 0:03:02.1]} 4... g6 {[%clk 0:02:57.6]} 5. Bg2 {[%clk 0:03:02]} 5...
Bg7 {[%clk 0:02:58]} 6. d4 {[%clk 0:03:02.7]} 6... cxd4 {[%clk 0:02:57.9]} 7.
Nxd4 {[%clk 0:03:03.6]} 7... O-O {[%clk 0:02:57.9]} 8. O-O {[%clk 0:03:03.1]}
8... Nc6 {[%clk 0:02:19.4]} 9. Nde2 {[%clk 0:03:02.4]} 9... Bd7 {[%clk
0:01:41.7]} 10. a4 {[%clk 0:03:01]} 10... Rc8 {[%clk 0:01:40.4]} 11. h3 {[%clk
0:02:59.6]} 11... Nb4 {[%clk 0:01:30.1]} 12. Be3 {[%clk 0:02:55.8]} 12... a5
{[%clk 0:01:26.4]} 13. Nd4 {[%clk 0:02:52.6]} 13... Ne8 {[%clk 0:01:16.7]} 14.
Re1 {[%clk 0:02:45.6]} 14... Nc7 {[%clk 0:01:15.1]} 15. Qd2 {[%clk 0:02:41.3]}
15... Ne6 {[%clk 0:01:07.4]} 16. Nde2 {[%clk 0:02:36.3]} 16... Nc5 {[%clk
0:01:01.1]} 17. Rec1 {[%clk 0:02:26.4]} 17... Qe8 {[%clk 0:00:54.9]} 18. b3
{[%clk 0:02:23.7]} 18... f5 {[%clk 0:00:45.6]} 19. exf5 {[%clk 0:02:12.1]} 19...
Bxf5 {[%clk 0:00:42]} 20. Bd4 {[%clk 0:02:12.4]} 20... Qf7 {[%clk 0:00:34.8]}
21. Bxg7 {[%clk 0:02:08]} 21... Qxg7 {[%clk 0:00:35.7]} 22. Nd5 {[%clk
0:01:35.3]} 22... Nxc2 {[%clk 0:00:23]} 23. Rab1 {[%clk 0:01:18.8]} 23... Nb4
{[%clk 0:00:22.5]} 24. Nxb4 {[%clk 0:00:58.3]} 24... Bxb1 {[%clk 0:00:22.5]} 25.
Rxb1 {[%clk 0:00:59.2]} 25... axb4 {[%clk 0:00:22]} 26. Qxb4 {[%clk 0:01:00.1]}
26... Kh8 {[%clk 0:00:20]} 27. Qd2 {[%clk 0:00:53.4]} 27... g5 {[%clk
0:00:17.1]} 28. a5 {[%clk 0:00:53]} 28... Qg6 {[%clk 0:00:16.1]} 29. Rd1 {[%clk
0:00:40.4]} 29... Qf6 {[%clk 0:00:12.7]} 30. Qe3 {[%clk 0:00:34.9]} 30... Nxb3
{[%clk 0:00:10.2]} 31. Bxb7 {[%clk 0:00:33.2]} 31... Nxa5 {[%clk 0:00:04.4]} 32.
Bxc8 {[%clk 0:00:33.5]} 32... Rxc8 {[%clk 0:00:05]} 33. Qe4 {[%clk 0:00:20.6]}
33... Nc4 {[%clk 0:00:03.8]} 34. Rc1 {[%clk 0:00:19.5]} 34... Nb6 {[%clk
0:00:02]} 35. Rxc8+ {[%clk 0:00:17.5]} 35... Nxc8 {[%clk 0:00:02.9]} 36. Qa8
{[%clk 0:00:18]} 36... Qf8 {[%clk 0:00:03.1]} 37. Nd4 {[%clk 0:00:18]} 37... e5
{[%clk 0:00:02.6]} 38. Ne6 {[%clk 0:00:13.1]} 38... Qg8 {[%clk 0:00:02.9]} 39.
Nxg5 {[%clk 0:00:07.7]} 39... Qxg5 {[%clk 0:00:02.3]} 40. Qxc8+ {[%clk
0:00:08.3]} 40... Qg8 {[%clk 0:00:02.1]} 41. Qd7 {[%clk 0:00:08]} 41... Qf8
{[%clk 0:00:02.5]} 42. h4 {[%clk 0:00:07.4]} 42... Qf6 {[%clk 0:00:02.2]} 43. h5
{[%clk 0:00:05.4]} 43... h6 {[%clk 0:00:02.2]} 44. Kg2 {[%clk 0:00:05.2]} 44...
Kg8 {[%clk 0:00:02.7]} 45. Qc8+ {[%clk 0:00:04.4]} 45... Kf7 {[%clk 0:00:02.9]}
46. Qd7+ {[%clk 0:00:05]} 46... Kf8 {[%clk 0:00:03.5]} 47. Qc8+ {[%clk
0:00:05.2]} 47... Kf7 {[%clk 0:00:04]} 48. Qc7+ {[%clk 0:00:05.7]} 48... Ke6
{[%clk 0:00:03.9]} 49. Qh7 {[%clk 0:00:05.5]} 49... d5 {[%clk 0:00:03.6]} 50.
Qg8+ {[%clk 0:00:06]} 50... Kd6 {[%clk 0:00:03.6]} 51. Qb8+ {[%clk 0:00:06.7]}
51... Ke6 {[%clk 0:00:03.6]} 52. Qb6+ {[%clk 0:00:06.9]} 52... Kf5 {[%clk
0:00:03.9]} 53. Qb1+ {[%clk 0:00:03.5]} 53... e4 {[%clk 0:00:04.2]} 54. Qd1
{[%clk 0:00:03.1]} 54... Ke6 {[%clk 0:00:03.3]} 55. Qa4 {[%clk 0:00:02.7]} 55...
Qf3+ {[%clk 0:00:03.1]} 56. Kg1 {[%clk 0:00:03.4]} 56... Qxh5 {[%clk 0:00:03.5]}
57. Qc6+ {[%clk 0:00:03.7]} 57... Ke5 {[%clk 0:00:03.9]} 58. Qc7+ {[%clk
0:00:04.3]} 58... Kd4 {[%clk 0:00:03.6]} 59. Qb6+ {[%clk 0:00:04.1]} 59... Kd3
{[%clk 0:00:03.5]} 60. Qb3+ {[%clk 0:00:03.5]} 60... Kd4 {[%clk 0:00:03.9]} 61.
Qb6+ {[%clk 0:00:03.2]} 61... Ke5 {[%clk 0:00:04.2]} 62. Qc7+ {[%clk 0:00:03.2]}
62... Ke6 {[%clk 0:00:04.2]} 63. Qc8+ {[%clk 0:00:03.3]} 63... Kf6 {[%clk
0:00:04.4]} 64. Qd8+ {[%clk 0:00:02.9]} 64... Kg7 {[%clk 0:00:03.5]} 65. Qd7+
{[%clk 0:00:02.3]} 65... Qf7 {[%clk 0:00:04.2]} 66. Qd6 {[%clk 0:00:02.8]} 66...
Kh7 {[%clk 0:00:03.6]} 67. Kg2 {[%clk 0:00:02.5]} 67... Qf3+ {[%clk 0:00:03.2]}
68. Kg1 {[%clk 0:00:03.1]} 68... Qf5 {[%clk 0:00:03.9]} 69. Qe7+ {[%clk
0:00:03.5]} 69... Kg6 {[%clk 0:00:04]} 70. Qd6+ {[%clk 0:00:04.4]} 70... Kg5
{[%clk 0:00:04.3]} 71. Kg2 {[%clk 0:00:04.5]} 71... Qf3+ {[%clk 0:00:03.6]} 72.
Kg1 {[%clk 0:00:05.1]} 72... Qd1+ {[%clk 0:00:03.6]} 73. Kg2 {[%clk 0:00:05.2]}
73... Qf3+ {[%clk 0:00:03.8]} 74. Kg1 {[%clk 0:00:05.6]} 74... Qf7 {[%clk
0:00:03.6]} 75. Qe5+ {[%clk 0:00:05.2]} 75... Kg6 {[%clk 0:00:04]} 76. Qd6+
{[%clk 0:00:05.3]} 76... Kg7 {[%clk 0:00:04.3]} 77. Qe5+ {[%clk 0:00:04.8]}
77... Kh7 {[%clk 0:00:04.8]} 78. Qd6 {[%clk 0:00:05.3]} 78... Qf5 {[%clk
0:00:03.4]} 79. Qe7+ {[%clk 0:00:05.4]} 79... Kg6 {[%clk 0:00:03.5]} 80. Qd6+
{[%clk 0:00:06.3]} 80... Kg7 {[%clk 0:00:03.9]} 81. Qe7+ {[%clk 0:00:06.7]}
81... Kg6 {[%clk 0:00:04.3]} 1/2-1/2

[Event "*** SCC Grand Prix: Titled Tuesday Blitz"]
[Site "Chess.com"]
[Date "2020.08.04"]
[Round "7"]
[White "VladaSviridova"]
[Black "Sanyura"]
[Result "1-0"]
[WhiteElo "2194"]
[BlackElo "2386"]
[TimeControl "180+1"]
[EndTime "15:03:11 PDT"]
[Termination "VladaSviridova won by checkmate"]

1. d4 {[%clk 0:03:00.5]} 1... Nf6 {[%clk 0:02:59.1]} 2. c4 {[%clk 0:03:00.4]}
2... c5 {[%clk 0:02:58.5]} 3. d5 {[%clk 0:03:00.3]} 3... b5 {[%clk 0:02:57.8]}
4. cxb5 {[%clk 0:03:00.7]} 4... a6 {[%clk 0:02:57.8]} 5. bxa6 {[%clk 0:03:01]}
5... e6 {[%clk 0:02:56.4]} 6. Nc3 {[%clk 0:02:55.7]} 6... exd5 {[%clk
0:02:56.2]} 7. Nxd5 {[%clk 0:02:55.6]} 7... Be7 {[%clk 0:02:55.9]} 8. Nf3 {[%clk
0:02:48.1]} 8... O-O {[%clk 0:02:44.9]} 9. g3 {[%clk 0:02:47.3]} 9... Rxa6
{[%clk 0:02:27.3]} 10. Bg2 {[%clk 0:02:42.9]} 10... Nxd5 {[%clk 0:02:22.4]} 11.
Qxd5 {[%clk 0:02:41.2]} 11... Rd6 {[%clk 0:02:21.7]} 12. Qf5 {[%clk 0:02:17.4]}
12... Ba6 {[%clk 0:02:20.1]} 13. O-O {[%clk 0:01:51.4]} 13... Bxe2 {[%clk
0:01:38.8]} 14. Re1 {[%clk 0:01:51.2]} 14... Bd3 {[%clk 0:01:38.9]} 15. Qxc5
{[%clk 0:01:33.5]} 15... Nc6 {[%clk 0:01:38.9]} 16. Bf4 {[%clk 0:01:27.9]} 16...
Re6 {[%clk 0:01:38.9]} 17. Qc3 {[%clk 0:01:24.4]} 17... Rxe1+ {[%clk 0:01:37.2]}
18. Nxe1 {[%clk 0:01:13.4]} 18... Bf5 {[%clk 0:01:28.5]} 19. Bxc6 {[%clk
0:00:55.7]} 19... d6 {[%clk 0:01:22.9]} 20. Bg2 {[%clk 0:00:52.8]} 20... Bf6
{[%clk 0:01:21.1]} 21. Qd2 {[%clk 0:00:51.2]} 21... Re8 {[%clk 0:01:18.9]} 22.
Nf3 {[%clk 0:00:47.6]} 22... h6 {[%clk 0:01:14.1]} 23. h4 {[%clk 0:00:47.2]}
23... Qb6 {[%clk 0:01:12.6]} 24. Be3 {[%clk 0:00:35]} 24... Qb8 {[%clk
0:01:06.2]} 25. Rd1 {[%clk 0:00:31.7]} 25... Be4 {[%clk 0:01:00.8]} 26. b3
{[%clk 0:00:27.3]} 26... Qa8 {[%clk 0:01:00.3]} 27. Ne1 {[%clk 0:00:26.4]} 27...
Bxg2 {[%clk 0:00:50.9]} 28. Nxg2 {[%clk 0:00:26.2]} 28... d5 {[%clk 0:00:49.8]}
29. a4 {[%clk 0:00:24.3]} 29... d4 {[%clk 0:00:46.3]} 30. Bxd4 {[%clk
0:00:21.7]} 30... Rd8 {[%clk 0:00:45.5]} 31. Qf4 {[%clk 0:00:19.9]} 31... Qd5
{[%clk 0:00:32.1]} 32. Ne3 {[%clk 0:00:17.5]} 32... Qxb3 {[%clk 0:00:32.3]} 33.
Bxf6 {[%clk 0:00:16.3]} 33... Rxd1+ {[%clk 0:00:32.3]} 34. Nxd1 {[%clk
0:00:16.4]} 34... Qxd1+ {[%clk 0:00:33.2]} 35. Kg2 {[%clk 0:00:16.6]} 35... Qd5+
{[%clk 0:00:32.7]} 36. Qf3 {[%clk 0:00:16.4]} 36... Qa5 {[%clk 0:00:31.8]} 37.
Be7 {[%clk 0:00:14.9]} 37... Qxa4 {[%clk 0:00:31.4]} 38. Bd6 {[%clk 0:00:14.8]}
38... Qd7 {[%clk 0:00:30.8]} 39. Bf4 {[%clk 0:00:14.8]} 39... Qe8 {[%clk
0:00:29.2]} 40. h5 {[%clk 0:00:15.1]} 40... Qb5 {[%clk 0:00:28.7]} 41. Qe3
{[%clk 0:00:14.4]} 41... Qa4 {[%clk 0:00:28.8]} 42. Qe7 {[%clk 0:00:13.7]} 42...
Qc6+ {[%clk 0:00:28.1]} 43. f3 {[%clk 0:00:12.4]} 43... Qc2+ {[%clk 0:00:27.7]}
44. Kh3 {[%clk 0:00:12.1]} 44... Qf5+ {[%clk 0:00:25.5]} 45. Kg2 {[%clk
0:00:12.2]} 45... Qxh5 {[%clk 0:00:25.3]} 46. Qe8+ {[%clk 0:00:12]} 46... Kh7
{[%clk 0:00:25.1]} 47. Qe4+ {[%clk 0:00:12.1]} 47... Kg8 {[%clk 0:00:25.4]} 48.
g4 {[%clk 0:00:12.3]} 48... Qb5 {[%clk 0:00:24.2]} 49. Kg3 {[%clk 0:00:12]}
49... Qb6 {[%clk 0:00:21.5]} 50. Be5 {[%clk 0:00:11.8]} 50... Qg1+ {[%clk
0:00:21.1]} 51. Kh3 {[%clk 0:00:11.3]} 51... Qh1+ {[%clk 0:00:20.3]} 52. Bh2
{[%clk 0:00:11.2]} 52... Qf1+ {[%clk 0:00:19.9]} 53. Kg3 {[%clk 0:00:11.5]}
53... Qb5 {[%clk 0:00:15]} 54. Qe3 {[%clk 0:00:10.5]} 54... Qb1 {[%clk
0:00:13.8]} 55. Qe8+ {[%clk 0:00:09.8]} 55... Kh7 {[%clk 0:00:13.7]} 56. Qe4+
{[%clk 0:00:09.9]} 56... Qxe4 {[%clk 0:00:13.5]} 57. fxe4 {[%clk 0:00:10.2]}
57... g6 {[%clk 0:00:14]} 58. Kf4 {[%clk 0:00:10.3]} 58... Kg7 {[%clk
0:00:14.3]} 59. Bg3 {[%clk 0:00:09.8]} 59... Kf6 {[%clk 0:00:14.7]} 60. Be1
{[%clk 0:00:09.1]} 60... Ke6 {[%clk 0:00:14.8]} 61. Bc3 {[%clk 0:00:08.9]} 61...
f6 {[%clk 0:00:12.5]} 62. Bb2 {[%clk 0:00:08.3]} 62... Ke7 {[%clk 0:00:12.5]}
63. Ba3+ {[%clk 0:00:08.6]} 63... Ke6 {[%clk 0:00:12.7]} 64. Bf8 {[%clk
0:00:08.7]} 64... h5 {[%clk 0:00:07]} 65. gxh5 {[%clk 0:00:09]} 65... gxh5
{[%clk 0:00:07.9]} 66. Bc5 {[%clk 0:00:09.1]} 66... h4 {[%clk 0:00:07.6]} 67.
Bf2 {[%clk 0:00:09.3]} 67... h3 {[%clk 0:00:07.7]} 68. Bg3 {[%clk 0:00:09.3]}
68... Ke7 {[%clk 0:00:04]} 69. Bh2 {[%clk 0:00:09.4]} 69... Ke6 {[%clk
0:00:04.3]} 70. Kf3 {[%clk 0:00:09.5]} 70... f5 {[%clk 0:00:04.5]} 71. e5 {[%clk
0:00:09.3]} 71... Kd5 {[%clk 0:00:03.1]} 72. Kf4 {[%clk 0:00:09]} 72... Ke6
{[%clk 0:00:02.1]} 73. Kg5 {[%clk 0:00:09.3]} 73... Kd5 {[%clk 0:00:02]} 74.
Kxf5 {[%clk 0:00:09.7]} 74... Kd4 {[%clk 0:00:02.7]} 75. Kg4 {[%clk 0:00:09.8]}
75... Ke3 {[%clk 0:00:03.6]} 76. Kxh3 {[%clk 0:00:10.1]} 76... Ke4 {[%clk
0:00:03.8]} 77. e6 {[%clk 0:00:10.5]} 77... Kf5 {[%clk 0:00:04.4]} 78. e7 {[%clk
0:00:10.9]} 78... Kg5 {[%clk 0:00:05.3]} 79. e8=Q {[%clk 0:00:10.5]} 79... Kf5
{[%clk 0:00:06.2]} 80. Qe7 {[%clk 0:00:10.5]} 80... Kg6 {[%clk 0:00:07.1]} 81.
Qe6+ {[%clk 0:00:10.6]} 81... Kh5 {[%clk 0:00:07.4]} 82. Qg4+ {[%clk 0:00:10.1]}
82... Kh6 {[%clk 0:00:08]} 83. Bf4+ {[%clk 0:00:10.3]} 83... Kh7 {[%clk
0:00:08.9]} 84. Be5 {[%clk 0:00:09.5]} 84... Kh6 {[%clk 0:00:09.2]} 85. Qg7+
{[%clk 0:00:09.4]} 85... Kh5 {[%clk 0:00:10.1]} 86. Qg4+ {[%clk 0:00:09.3]}
86... Kh6 {[%clk 0:00:10.2]} 87. Bf6 {[%clk 0:00:09.4]} 87... Kh7 {[%clk
0:00:10]} 88. Qg7# {[%clk 0:00:09.7]} 1-0